{"text_format":"1","workbook":"xlsx","n_sheets":1,"sheets":["факт (передача) "],"not_rendered":{"charts":0,"images":0,"macros":1,"external_links":1,"defined_names":26,"comments":0,"pivot_tables":0},"unopened":[],"bounds":{"document_bytes":16777216,"sheet_cells":100000,"rows_first":2000,"rows_last":500,"rows_between":2000,"halvings":0,"cell_chars":16384,"cell_head_chars":4096},"cells_cut":0,"cells_raw":0,"read":"whole","date_system":"1900"}

{"sheet":"факт (передача) ","index":0,"n_rows":47,"n_cols":29,"rows_kept":47,"cut":false,"hidden":false,"merged":[[45,17,45,19],[46,17,46,19],[46,21,46,23],[46,28,46,29],[43,8,43,9],[43,17,43,19],[43,25,43,27],[44,8,44,9],[44,17,44,19],[44,25,44,27],[12,11,12,13],[36,7,36,8],[40,17,40,19],[40,21,40,23],[40,25,40,27],[41,17,41,19],[41,21,41,23],[41,25,41,27],[5,26,5,28],[6,26,6,28],[7,7,7,28],[8,7,8,28],[11,7,13,7],[11,8,13,8],[11,9,11,14],[11,15,11,24],[11,25,11,26],[11,27,11,28],[1,26,1,28],[2,15,2,17],[2,19,2,21],[2,26,2,28],[3,26,3,28],[4,26,4,28]]}
[]
[null,null,null,null,null,null,null,null,null,null,null,null,null,null,null,null,null,null,null,null,null,null,null,null,null,null,"Форма № 3- тр."]
[null,null,null,null,null,null,null,null,null,null,null,null,null,null,null,null,null,null,null,null,null,null,null,null,null,null,"к приложению № 1 приказа "]
[null,null,null,null,null,null,null,null,null,null,null,null,null,null,null,null,null,null,null,null,null,null,null,null,null,null,"Министерства энергетики и "]
[null,null,null,null,null,null,null,null,null,null,null,null,null,null,null,null,null,null,null,null,null,null,null,null,null,null,"жилищно-коммунального "]
[null,null,null,null,null,null,null,null,null,null,null,null,null,null,null,null,null,null,null,null,null,null,null,null,null,null,"хозяйства Самарской области"]
[null,null,null,null,null,null,null,null,null,null,null,null,null,null,null,null,null,null,null,null,null,null,null,null,null,null,"от \"24 \"декабря 2012 года № 442"]
[null,null,null,null,null,null,null,"Баланс теплоснабжающей организации, осуществляющей передачу (транспортировку) тепловой энергии "]
[null,null,null,null,null,null,null,{"$f":"IF(org=\"\",\"Организация не определена\",org)","v":"ООО \"СПЕЦАВТОМАТИКА\""}]
[]
[]
[null,null,null,null,null,null,null,"№/№","Наименование показателей","теплоноситель - горячая вода ",null,null,null,null,null,"теплоноситель - отборный пар, в том числе",null,null,null,null,null,null,null,null,null,"острый и редуцированный пар",null,"Всего, горячая вода и пар "]
[null,null,null,null,null,null,null,null,null,"на нужды отопления"," на нужды горячего водоснабжения","справочно*",null,null,"выручка","1,2-2,5 кг/см2","выручка","2,5-7,0 кг/см2","выручка","7,0-13,0 кг/см2","выручка",">13 кг/см2","выручка","Всего","выручка","объем","выручка","объем","выручка"]
[null,null,null,null,null,null,null,null,null,"тыс. Гкал","тыс. Гкал","Объем горячей воды (закрытая система), м3","Объем теплоносителя (открытая система), т","Температура реализуемой(ого) воды/теплоносителя, t","тыс. руб.","тыс. Гкал","тыс. руб.","тыс. Гкал","тыс. руб.","тыс. Гкал","тыс. руб.","тыс. Гкал","тыс. руб.","тыс. Гкал","тыс. руб.","тыс. Гкал","тыс. руб.","тыс. Гкал","тыс. руб."]
[null,null,null,null,null,null,null,1,2,3,4,5,6,7,8,9,10,11,12,13,14,15,16,17,18,19,20,21,22]
[null,null,null,null,null,null,null,1,"Принято тепловой энергии для передачи (транспортировки)",{"$f":"J19+J18","v":15.402600000000001},{"$f":"K19+K18","v":0},{"$f":"L19+L18","v":0},{"$f":"M19+M18","v":0},null,null,{"$f":"P19+P18","v":0},null,{"$f":"R19+R18","v":0},null,{"$f":"T19+T18","v":0},null,{"$f":"V19+V18","v":0},null,{"$f":"X19+X18","v":0},null,{"$f":"Z19+Z18","v":0},null,{"$f":"AB19+AB18","v":15.402600000000001}]
[null,null,null,null,null,null,null,null,"в том числе по приборам учета",14.590999999999999,null,null,null,null,null,null,null,null,null,null,null,null,null,{"$f":"P17+R17+T17+V17","v":0},null,null,null,{"$f":"Z17+X17+J17+K17","v":14.590999999999999}]
[null,null,null,null,null,null,null,2,"Потери тепловой энергии",0.81159999999999999,null,null,null,null,null,null,null,null,null,null,null,null,null,{"$f":"P18+R18+T18+V18","v":0},null,null,null,{"$f":"Z18+X18+J18+K18","v":0.81159999999999999}]
[null,null,null,null,null,null,null,3,"Отпуск тепловой энергии всего",{"$f":"J21+J23+J25+J31+J33","v":14.591000000000001},0,0,{"$f":"M21+M23+M25+M31+M33","v":0},null,1794.693,0,0,0,0,0,0,0,0,0,0,0,0,14.591000000000001,1794.693]
[null,null,null,null,null,null,null,null,"в том числе по приборам учета",1.5090000000000001,0,0,{"$f":"M22+M24+M26+M32+M34","v":0},null,185.60700000000003,0,0,0,0,0,0,0,0,0,0,0,0,1.5090000000000001,185.60700000000003]
[null,null,null,null,null,null,null,"3.1","На технологические нужды предприятия",0,null,null,null,null,null,null,null,null,null,null,null,null,null,{"$f":"P21+R21+T21+V21","v":0},0,null,null,{"$f":"Z21+X21+J21+K21","v":0},{"$f":"O21+Y21+AA21","v":0}]
[null,null,null,null,null,null,null,null,"в том числе по приборам учета",0,null,null,null,null,null,null,null,null,null,null,null,null,null,0,0,null,null,0,0]
[null,null,null,null,null,null,null,"3.2","Бюджетные потребители",7.0000000000000007E-2,null,null,null,null,8.61,null,null,null,null,null,null,null,null,0,0,null,null,7.0000000000000007E-2,8.61]
[null,null,null,null,null,null,null,null,"в том числе по приборам учета",7.0000000000000007E-2,null,null,null,null,8.61,null,null,null,null,null,null,null,null,0,0,null,null,7.0000000000000007E-2,8.61]
[null,null,null,null,null,null,null,"3.3","Население, исполнители коммунальных услуг (управляющие организации, ТСЖ, ЖСК, жилищные или иные специализированные потребительские кооперативы, при непосредственном управлении многоквартирным домом собственниками помещений - иные организации,  приобретающие коммунальные ресурсы)",{"$f":"J27+J29","v":0},0,0,0,null,{"$f":"O27+O29","v":0},0,0,0,0,0,0,0,0,0,0,{"$f":"Z27+Z29","v":0},{"$f":"AA27+AA29","v":0},0,0]
[null,null,null,null,null,null,null,null,"в том числе по приборам учета",0,0,0,0,null,0,0,0,0,0,0,0,0,0,0,0,{"$f":"Z28+Z30","v":0},{"$f":"AA28+AA30","v":0},0,0]
[null,null,null,null,null,null,null,"3.3.1"," население, проживающее в жилых домах (за исключением многоквартирных домов)",0,null,null,null,null,null,null,null,null,null,null,null,null,null,0,0,null,null,{"$f":"Z27+X27+J27+K27","v":0},{"$f":"O27+Y27+AA27","v":0}]
[null,null,null,null,null,null,null,null,"в том числе по приборам учета",0,null,null,null,null,null,null,null,null,null,null,null,null,null,0,0,null,null,{"$f":"Z28+X28+J28+K28","v":0},{"$f":"O28+Y28+AA28","v":0}]
[null,null,null,null,null,null,null,"3.3.2","население, проживающее в многоквартирных домах ",0,null,null,null,null,null,null,null,null,null,null,null,null,null,0,0,null,null,{"$f":"Z29+X29+J29+K29","v":0},{"$f":"O29+Y29+AA29","v":0}]
[null,null,null,null,null,null,null,null,"в том числе по приборам учета",0,null,null,null,null,null,null,null,null,null,null,null,null,null,0,0,null,null,{"$f":"Z30+X30+J30+K30","v":0},{"$f":"O30+Y30+AA30","v":0}]
[null,null,null,null,null,null,null,"3.4","Прочие потребители ",14.521000000000001,null,null,null,null,1786.0830000000001,null,null,null,null,null,null,null,null,0,0,null,null,14.521000000000001,1786.0830000000001]
[null,null,null,null,null,null,null,null,"в том числе по приборам учета",1.4390000000000001,null,null,null,null,176.99700000000001,null,null,null,null,null,null,null,null,0,0,null,null,1.4390000000000001,176.99700000000001]
[null,null,null,null,null,null,null,"3.5","Организации-перепродавцы",{"$f":"SUMIF($AU36:$AU37,\"org\", J36:J37)","v":0},{"$f":"SUMIF($AU36:$AU37,\"org\", K36:K37)","v":0},{"$f":"SUMIF($AU36:$AU37,\"org\", L36:L37)","v":0},{"$f":"SUMIF($AU36:$AU37,\"org\", M36:M37)","v":0},null,{"$f":"SUMIF($AU36:$AU37,\"org\", O36:O37)","v":0},0,0,0,0,0,0,0,0,0,0,0,0,0,0]
[null,null,null,null,null,null,null,"3.5.0","в том числе по приборам учета",{"$f":"SUMIF($AU36:$AU37,\"pp\", J36:J37)","v":0},{"$f":"SUMIF($AU36:$AU37,\"pp\", K36:K37)","v":0},{"$f":"SUMIF($AU36:$AU37,\"pp\", L36:L37)","v":0},{"$f":"SUMIF($AU36:$AU37,\"pp\", M36:M37)","v":0},null,{"$f":"SUMIF($AU36:$AU37,\"pp\", O36:O37)","v":0},0,0,0,0,0,0,0,0,0,0,0,0,0,0]
[null,null,null,null,null,null,null,"3.5.0","в том числе"]
[null,null,null,null,null,null,null,"3.5.0.0"]
[null,null,null,null,null,null,null,"Добавить организацию"]
[]
[null,null,null,null,null,null,null,null,"Примечание:"]
[null,null,null,null,null,null,null,null,"* Заполняется в случае оказание услуги по горячему водоснабжению, вне зависимости от  вида системы теплоснабжения (открытой или закрытой)",null,null,null,null,null,null,null,null,"М.П."]
[null,null,null,null,null,null,null,null,null,null,"Руководитель организации           ",null,null,null,null,null,null,"_______________________",null,null,null,null,null,null,null,"_____________________________"]
[null,null,null,null,null,null,null,null,null,null,null,null,null,null,null,null,null,"  (подпись)",null,null,null,null,null,null,null,"(расшифровка подписи)"]
[null,null,null,null,null,null,null,null,null,null,"Должностное лицо, ответственное за составление формы"]
[null,null,null,null,null,null,null,null,null,null,null,null,null,null,null,null,null,"_______________________",null,null,null,null,null,null,null,"___________________"]
[null,null,null,null,null,null,null,null,null,null,null,null,null,null,null,null,null,"  (подпись)",null,null,null,null,null,null,null,"(расшифровка подписи)"]
[null,null,null,null,null,null,null,null,null,null,"\"______\" _________________ 20___ год",null,null,null,null,null,null,"_____________________"]
[null,null,null,null,null,null,null,null,null,null,"             (дата составления документа)",null,null,null,null,null,null,"(номер контактного телефона)"]